Cogmind - Beta 11.1 @@@ ROGUE MODE // 2022.04.29 @ 22:14:46 Player: art-hropod Result: Destroyed by G-47 Trooper with Particle Gun Performance ------------- Evolutions (2) 1000 Regions Visited (5) 1000 Robots Destroyed (25) 125 Value Destroyed (560) 560 Prototype IDs (1) 20 Alien Tech Used (0) 0 Bonus (431) 431 TOTAL SCORE: 3136 Bonus ------- Follower Combat Kills 165 Aligned with FarCom 300 Friendly Fire -34 Cogmind --------- Core Integrity 0/550 Matter 300/300 Energy 159/160 System Corruption 0% Temperature Warm (128) Movement Core (100) Ox1 Location -8/Materials Parts ------- > --- POWER (2) -------- Light Nuclear Core > --- PROPULSION (4) --- (None) > --- UTILITY (3) ------ (None) > --- WEAPON (2) ------- (None) > --- INVENTORY (5) ---- Makeshift Power Source Improved Terrain Scanner Particle Charger Sensor Drone Bay Flak Cannon Peak State ------------ > --- POWER ------------ Nuclear Core Light Nuclear Core > --- PROPULSION ------- Aluminum Leg Aluminum Leg Makeshift Leg > --- UTILITY ---------- Medium Storage Unit Improved Signal Interpreter Supersonic Drone Bay > --- WEAPON ----------- Medium Laser Minigun > --- INVENTORY -------- Light Nuclear Core Makeshift Power Source Aluminum Leg Improved Sensor Array Improved Terrain Scanner Seismic Detector Particle Charger Improved Light Armor Plating Sensor Drone Bay Particle Gun [Rating: 31] Favorites ----------- Power Ion Engine Engine Ion Engine Power Core Nuclear Core Propulsion Aluminum Leg Leg Aluminum Leg Utility Medium Storage Unit Device Supersonic Drone Bay Storage Medium Storage Unit Processor Improved Signal Interpreter Weapon Assault Rifle Energy Gun Medium Laser Energy Cannon EM Pulse Cannon Ballistic Gun Assault Rifle Launcher Grenade Launcher Build | -11 -10 -10 -10 -9 -8 ------- Run | Scr Mat Min Exi Min Mat Slots Evolved 4 | . . . . . 4 Power 1 | . . . . . 1 Propulsion 2 | . . . . . 2 Utility 1 | . . . . . 1 Weapon . | . . . . . . Parts Attached 30 | 7 3 4 . . 16 Power 6 | 1 . 1 . . 4 Engine 3 | 1 . 1 . . 1 Core 3 | . . . . . 3 Reactor . | . . . . . . Propulsion 9 | 2 . 1 . . 6 Treads . | . . . . . . Leg 9 | 2 . 1 . . 6 Wheel . | . . . . . . Hover . | . . . . . . Flight . | . . . . . . Utility 6 | 2 2 1 . . 1 Device 2 | 1 . . . . 1 Storage 3 | 1 2 . . . . Processor 1 | . . 1 . . . Hackware . | . . . . . . Protection . | . . . . . . Artifact . | . . . . . . Weapon 9 | 2 1 1 . . 5 Energy Gun 2 | 1 . . . . 1 Energy Cannon 1 | . . . . . 1 Ballistic Gun 4 | 1 . 1 . . 2 Ballistic Cannon . | . . . . . . Launcher 2 | . 1 . . . 1 Special Weapon . | . . . . . . Impact Weapon . | . . . . . . Slashing Weapon . | . . . . . . Piercing Weapon . | . . . . . . Special Melee Weapon . | . . . . . . Unidentified Prototypes 1 | . . . . . 1 Parts Lost 20 | . . 2 . . 18 Power 5 | . . 1 . . 4 Propulsion 8 | . . . . . 8 Utility 1 | . . . . . 1 Weapon 6 | . . 1 . . 5 Highest Loss Streak 9 | . . 2 . . 9 To Critical Strikes . | . . . . . . Average Slot Usage (%) 94 | . 100 98 100 100 88 Engine 9 | . 14 13 14 14 4 Core 5 | . . . . . 11 Leg 27 | . 28 28 28 28 27 Device 4 | . . . . . 8 Storage 14 | . 27 20 14 14 9 Processor 8 | . . 7 14 14 9 Energy Gun 2 | . . . . . 6 Ballistic Gun 16 | . 14 23 28 28 10 Launcher 2 | . 13 3 . . 1 Naked Turns . | . . . . . . Heaviest Build 29 | 13 19 20 19 19 29 Greatest Support 42 | 20 20 22 22 22 42 Greatest Overweight (x) 2 | . . . . . 2 Average Overweight (x) . | . . . . . . Largest Inventory Capacity 10 | 8 10 10 10 10 10 Average Capacity 9 | 6 9 10 10 10 9 Most Carried 10 | 8 10 10 10 10 10 Average Carried 8 | 2 8 9 9 10 9 Final Capacity 10 | 8 10 10 10 10 5 Final Carried 10 | 8 10 10 10 10 5 Class Distribution -------------------- 71% | Mutant 28% | Scavenger-Mutant Dominant Class ---------------- Mutant | -10/Materials Mutant | -10/Mines Mutant | -10/Exiles Mutant | -9/Mines Scavenger-Mutant | -8/Materials Resources | -11 -10 -10 -10 -9 -8 ----------- Run | Scr Mat Min Exi Min Mat Matter Collected 900 | 318 81 16 . . 485 Remotely . | . . . . . . Salvage Created 703 | 160 167 16 . . 360 Parts 40 | 12 11 2 . . 15 Haulers Intercepted . | . . . . . . Recyclers Shooed 1 | . . . . . 1 Parts Field Recycled . | . . . . . . Retrieved Matter . | . . . . . . Parts Self-Destructed . | . . . . . . Prevented . | . . . . . . Kills | -11 -10 -10 -10 -9 -8 ------- Run | Scr Mat Min Exi Min Mat Combat Hostiles Destroyed 9 | . 5 . . . 4 Guns 5 | . 2 . . . 3 Cannons 1 | . . . . . 1 AOE 3 | . 3 . . . . Classes Destroyed 7 | 3 3 . . . 1 Worker 4 | 1 2 1 . . . Builder 2 | . 2 . . . . Tunneler 3 | 3 . . . . . Recycler 3 | 1 1 . . . 1 Watcher 3 | . 1 . . . 2 Grunt 9 | . 5 . . . 4 Zionite 1 | . . . . . 1 Best Kill Streak 11 | 3 11 1 . . 2 Combat Bots Only 5 | . 5 . . . 2 Max Kills in Single Turn 2 | 1 2 1 . . 2 Gunslinging . | . . . . . . Exploded 1 | . 1 . . . . Melee . | . . . . . . Uniques/NPCs Destroyed . | . . . . . . Combat | -11 -10 -10 -10 -9 -8 -------- Run | Scr Mat Min Exi Min Mat Damage Taken 2411 | . 272 57 . . 2082 Core 677 | . 126 . . . 551 Absorbed by Shields . | . . . . . . Core Remaining (%) 74 | 100 . . . 49 . Volleys Fired 70 | 16 18 1 . . 35 Largest 2 | 2 2 2 . . 2 Hottest 75 | 70 50 40 . . 75 Shots Fired 124 | 21 36 2 . . 65 Gun 95 | 21 18 2 . . 54 Cannon 1 | . . . . . 1 Launcher 28 | . 18 . . . 10 Special . | . . . . . . Kinetic 68 | 16 18 2 . . 32 Thermal 27 | 5 . . . . 22 Explosive 28 | . 18 . . . 10 Electromagnetic 1 | . . . . . 1 Robot Hit Streak 9 | 7 8 1 . . 9 Robot Miss Streak 5 | 2 2 1 . . 5 Penetration Max . | . . . . . . Secondary Targets . | . . . . . . Shots Hit Robots 67 | 14 14 1 . . 38 Core Hits 57 | 6 22 1 . . 28 Critical Kills . | . . . . . . Critical Parts Destroyed . | . . . . . . Critical Strikes 2 | . . . . . 2 Burn 2 | . . . . . 2 Melee Attacks . | . . . . . . Impact . | . . . . . . Slashing . | . . . . . . Piercing . | . . . . . . Sneak Attacks . | . . . . . . Combat Hostiles . | . . . . . . Follow-up Attacks . | . . . . . . Damage Inflicted 1990 | 170 905 13 . . 902 Guns 760 | 170 82 13 . . 495 Cannons 25 | . . . . . 25 Explosions 1199 | . 823 . . . 376 Melee . | . . . . . . Ramming 6 | . . . . . 6 Kinetic 509 | 131 82 13 . . 283 Thermal 251 | 39 . . . . 212 Explosive 1199 | . 823 . . . 376 Electromagnetic 25 | . . . . . 25 Impact . | . . . . . . Slashing . | . . . . . . Piercing . | . . . . . . Highest Corruption . | . . . . . . Average Corruption . | . . . . . . Corruption Purged . | . . . . . . Corruption Blocked . | . . . . . . Overload Shots . | . . . . . . Overflow Damage 16 | . 16 . . . . Projectiles . | . . . . . . Explosions 16 | . 16 . . . . Melee . | . . . . . . Knockbacks . | . . . . . . Impact . | . . . . . . Kinetic . | . . . . . . Secondary . | . . . . . . Self-Inflicted Damage 123 | . 115 . . . 8 Shots 3 | . 2 . . . 1 Rammed . | . . . . . . Targets Rammed 1 | . . . . . 1 Kicked 1 | . . . . . 1 Crushed . | . . . . . . Highest Temperature 154 | 18 8 . . . 154 Average Temperature 35 | 9 3 . . . 44 Received Heat Transfer 1125 | . 90 . . . 1035 Siege Activations . | . . . . . . Robots Corrupted . | . . . . . . Combat Hostiles . | . . . . . . Parts Fried . | . . . . . . Impact Corruptions . | . . . . . . Robots Melted . | . . . . . . Combat Hostiles . | . . . . . . Parts Melted . | . . . . . . Heat Transferred 888 | 111 . . . . 777 Parts Sabotaged . | . . . . . . Parts Stolen . | . . . . . . Parts Stripped . | . . . . . . Power Chain Reactions . | . . . . . . Missiles Intercepted . | . . . . . . Alert | -11 -10 -10 -10 -9 -8 ------- Run | Scr Mat Min Exi Min Mat Peak Influence 393 | 25 393 153 . . 268 Initial 153 | . 16 153 . . . Average 126 | 11 216 140 . . 137 Maximum Alert Level 1 | . 1 . . . 1 Low Security (%) 74 | 100 45 100 . 100 67 Level 1 25 | . 54 . . . 32 Level 2 . | . . . . . . Level 3 . | . . . . . . Level 4 . | . . . . . . Level 5 . | . . . . . . High Security . | . . . . . . Max Security . | . . . . . . Squads Dispatched 5 | . 1 . . . 4 Investigation . | . . . . . . Extermination . | . . . . . . Reinforcement 3 | . 1 . . . 2 Assault . | . . . . . . Garrison 2 | . . . . . 2 Intercept . | . . . . . . Searches Triggered . | . . . . . . Construction Impeded 1 | . . . . . 1 Haulers Reinforced . | . . . . . . Active Scanning Responses . | . . . . . . Cargo Convoy Interrupts . | . . . . . . Stealth | -11 -10 -10 -10 -9 -8 --------- Run | Scr Mat Min Exi Min Mat Distress Signals 3 | . 1 . . . 2 Communications Jammed . | . . . . . . Distress Signals . | . . . . . . Times Spotted 39 | . 8 . . . 31 Peak Tracking Total 10 | . 4 . . . 10 Tactical Retreats 1 | . . . . . 1 Traps | -11 -10 -10 -10 -9 -8 ------- Run | Scr Mat Min Exi Min Mat Traps Triggered . | . . . . . . Indirectly . | . . . . . . Trap Hack Attempts . | . . . . . . Triggered . | . . . . . . Disarmed . | . . . . . . Reprogrammed . | . . . . . . Reused . | . . . . . . Traps Extracted . | . . . . . . Installed . | . . . . . . Triggered . | . . . . . . Exploded 1 | . . . 1 . . Machines | -11 -10 -10 -10 -9 -8 ---------- Run | Scr Mat Min Exi Min Mat Machines Disabled 7 | . 4 . . . 3 Max in Single Turn 2 | . 2 . . . 1 Machines Sabotaged . | . . . . . . Garrisons Compromised . | . . . . . . Overloaded Fab Kills . | . . . . . . Hacking | -11 -10 -10 -10 -9 -8 --------- Run | Scr Mat Min Exi Min Mat Machines Accessed 2 | . . 1 . 1 . Terminals . | . . . . . . Fabricators . | . . . . . . Repair Stations . | . . . . . . Recycling Units . | . . . . . . Scanalyzers . | . . . . . . Garrison Access . | . . . . . . Total Hacks 2 | . . 1 . 1 . Successful 2 | . . 1 . 1 . Failed . | . . . . . . Catastrophic . | . . . . . . Database Lockouts . | . . . . . . Manual 1 | . . . 1 . . Terminals . | . . . . . . Fabricators . | . . . . . . Repair Stations . | . . . . . . Recycling Units . | . . . . . . Scanalyzers . | . . . . . . Garrison Access . | . . . . . . Terminal Hacks 2 | . . 1 . 1 . Open Door 2 | . . 1 . 1 . Fabricator Hacks . | . . . . . . Repair Station Hacks . | . . . . . . Recycling Unit Hacks . | . . . . . . Scanalyzer . | . . . . . . Garrison Access Hacks . | . . . . . . Unauthorized Hacks . | . . . . . . Terminals . | . . . . . . Fabricators . | . . . . . . Repair Stations . | . . . . . . Recycling Units . | . . . . . . Scanalyzers . | . . . . . . Garrison Access . | . . . . . . Data Cores Recovered . | . . . . . . Used . | . . . . . . Hacking Detections . | . . . . . . Full Trace Events . | . . . . . . Feedback Events . | . . . . . . Feedback Blocked . | . . . . . . Robot Schematics Acquired . | . . . . . . Robots Built . | . . . . . . Authchips . | . . . . . . Time . | . . . . . . Total Robot Build Rating . | . . . . . . Part Schematics Acquired . | . . . . . . Parts Built . | . . . . . . Authchips . | . . . . . . Time . | . . . . . . Total Part Build Rating . | . . . . . . Parts Repaired . | . . . . . . Time . | . . . . . . Parts Recycled . | . . . . . . Recycled Matter . | . . . . . . Retrieved Matter . | . . . . . . Retrieved Components . | . . . . . . Parts Scanalyzed . | . . . . . . Part Schematics Acquired . | . . . . . . Parts Damaged . | . . . . . . Bothacking | -11 -10 -10 -10 -9 -8 ------------ Run | Scr Mat Min Exi Min Mat Used RIF Installer . | . . . . . . Robots Hacked . | . . . . . . Non-combat . | . . . . . . Combat . | . . . . . . Robot Hacks Applied . | . . . . . . Relay Couplers Released . | . . . . . . Fabnet Peak Effective % . | . . . . . . Robots Rewired . | . . . . . . Allies Hacked . | . . . . . . Hacks Repelled . | . . . . . . Allies | -11 -10 -10 -10 -9 -8 -------- Run | Scr Mat Min Exi Min Mat Total Allies 2 | . . . . 2 . Largest Group 2 | . . . . 2 2 Highest-Rated Group 47 | . . . . 47 47 Highest-Rated Ally 31 | . . . . 31 31 Total Orders . | . . . . . . Ally Attacks 33 | . . . . . 33 Total Damage 434 | . . . . . 434 Kills 7 | . . . . . 7 Allies Corrupted . | . . . . . . Allies Melted . | . . . . . . Intel | -11 -10 -10 -10 -9 -8 ------- Run | Scr Mat Min Exi Min Mat Robot Analysis Total . | . . . . . . Derelict Logs Recovered 1 | . . . . 1 . Drone Launches 1 | . . . . . 1 Drone Recoveries . | . . . . . . Exploration | -11 -10 -10 -10 -9 -8 ------------- Run | Scr Mat Min Exi Min Mat Turns Passed 1615 | 111 237 164 242 152 709 Spaces Moved 1170 | 50 144 141 230 144 461 Core 17 | 11 . . . . 6 Treads . | . . . . . . Legs 1153 | 39 144 141 230 144 455 Wheels . | . . . . . . Hover . | . . . . . . Flight . | . . . . . . Fastest Speed 50 | 50 120 105 105 105 100 Average Speed 114 | 104 120 108 105 105 123 Slowest Speed 260 | 120 120 120 105 105 260 Overloaded Moves . | . . . . . . Propulsion Burnouts . | . . . . . . Robots Hopped . | . . . . . . Cave-ins Triggered . | . . . . . . Exploration Rate (%) 36 | 3 33 40 62 41 42 Regions Visited 5 Branch Regions 3 Pre-discovered Areas . | . . . . . . Known Exits Taken 3 | . . 1 1 1 . Unknown Exits Taken 2 | 1 1 . . . . Scrap Searched . | . . . . . . Spaces Dug 14 | . . . . . 14 Terrain Destroyed 98 | . 63 . . . 35 Melee . | . . . . . . Projectile . | . . . . . . AOE 98 | . 63 . . . 35 Terrain Rammed . | . . . . . . Walls Destroyed . | . . . . . . Machines Disabled . | . . . . . . Actions | -11 -10 -10 -10 -9 -8 --------- Run | Scr Mat Min Exi Min Mat Total 1325 | 87 173 150 231 145 539 Wait 2 | . . . . . 2 Move 1165 | 49 143 140 229 143 461 Hop . | . . . . . . Pick Up 42 | 15 5 3 1 1 17 Fast Attach . | . . . . . . Attach 23 | 7 . 2 . . 14 Detach 1 | . . . . . 1 Swap 7 | . 3 2 . . 2 Drop 14 | . 4 2 1 1 6 Fire 70 | 16 18 1 . . 35 Melee . | . . . . . . Ram . | . . . . . . Kick 1 | . . . . . 1 Crush . | . . . . . . Escape Stasis . | . . . . . . Rewire . | . . . . . . Trap . | . . . . . . Miscellaneous . | . . . . . . Route ------- -11/Scrapyard -10/Materials -10/Mines -10/Exiles -9/Mines -8/Materials History --------- Turn | Location | Event 16 | -11/Scrapyard | Discovered new exit (range 15) 112 | -11/Scrapyard | Entered Materials 236 | -10/Materials | Core integrity fell below 50% 308 | -10/Materials | Build established: Mutant 323 | -10/Materials | Discovered new exit (range 11) 349 | -10/Materials | Entered Mines 383 | -10/Mines | Met a Derelict who couldn't figure out how to use a Trap Extractor 508 | -10/Mines | Deemed a non-threat by the Exiles lab entrance 509 | -10/Mines | Discovered new exit (range 5) 512 | -10/Mines | Identified exit to Exiles 513 | -10/Mines | Entered Exiles 542 | -10/Exiles | Met 8R-AWN 561 | -10/Exiles | Met EX-HEX 593 | -10/Exiles | Met EX-BIN 606 | -10/Exiles | Aligned with FarCom system 607 | -10/Exiles | Given EX-Vault access code 632 | -10/Exiles | Opened EX-Vault 639 | -10/Exiles | Found Prototype Device 662 | -10/Exiles | Warned to stay clear of 0b10 Research branches 677 | -10/Exiles | Exiles lab attacked by MAIN.C 743 | -10/Exiles | Discovered new exit (range 12) 754 | -10/Exiles | Identified exit to Mines 755 | -10/Exiles | Left Exiles lab with Supersonic Drone Bay 755 | -10/Exiles | Entered Mines 762 | -9/Mines | Found the Drone Emporium 765 | -9/Mines | Found Prototype Device 849 | -9/Mines | Learned Materials terminal intel 865 | -9/Mines | Discovered new exit (range 10) 875 | -9/Mines | Identified exit to Materials 907 | -9/Mines | Entered Materials 907 | -8/Materials | Accompanied by 2 allies 907 | -8/Materials | Evolved 4 slots: Power x1, Propulsion x2, Utility x1 908 | -8/Materials | Loaded intel: 12 terminal locations 912 | -8/Materials | Led the pair of lost Derelicts to an unsafe place 915 | -8/Materials | Identified Supersonic Drone Bay 1057 | -8/Materials | Garrison activated, responded to threat 1161 | -8/Materials | Lost 9 parts (2p4n3w) 1424 | -8/Materials | Build established: Scavenger-Mutant 1469 | -8/Materials | Garrison activated, responded to threat 1608 | -8/Materials | Core integrity fell below 50% 1616 | -8/Materials | Core integrity fell below 20% 1616 | -8/Materials | Destroyed by G-47 Trooper with Particle Gun Last Messages --------------- 01590_ Aluminum Leg destroyed. 01593_ Nuclear Core destroyed. 01595_ Acquired Imp. EM Pulse Cannon. 01602_ U-05 Engineer builds a Wall. 01604_ Critical hit (Burn: +37). 01605_ Aluminum Leg destroyed. 01606_ Critical hit (Burn: +37). 01608_ Med. Laser destroyed. 01609_ Mak. Leg destroyed. 01609_ Aluminum Leg destroyed. 01609_ Critical hit (Blast). 01609_ Knocked back. 01610_ Dropped Med. Storage Unit. 01610_ Acquired 1 matter. 01610_ Minigun destroyed. 01612_ Critical hit (Burn: +37). 01615_ Penetrated by Slug. 01615_ Imp. Signal Interpreter destroyed. 01615_ Critical hit (Blast). 01616_ Critical hit (Burn: +37). Map ----- +----------------------------------------------------+ | ??????????????????????????????????????????????? | | ??????????????????????????????????????????????? | | ????????????????????????????????????????T?????? | | ??????????????????????????????????????????????? | | ??????????????????????????????????????????????? | | ??????????????????????????????????????????????? | | ??????????????????????????????????????????????? | | ??????????????????????????????????????????????? | | ????????????????????????????????# ???????????? | | ????????????????????????????????#!!???????????? | | ????????????????????????????????#!! ?????????## | | ???????????????????????????????##!! ?????????# | | ???????????????????????????????? ????????# | | ????????????????????????????????# ????????# | | ????????????????????????????????# ????????# | | ????????????????????????????????# "T"?????#= | | ??????????????????????????????????[ """?????# | | ?????????????????????###############+########## | | ?????????????????????# T o | | ?????????????????????# | | ?????????????????????# """ """ | | ?????????????????????# """ """ ##/#+### | | ?????????????????????#* """ """ # !# | | ?????????????????????# #! ! # | | ????????????????????##% w # =# | | ?????????????????####;@ """ """ """ # """ # | | ?????????????????#[[ """ """ """ # """ !# | | ?????????????????#[[ % """ """ """ # """ # | | ?????????????????#] % ######## | | ?????????????????#]] YYY #??????? | | ?????????????????#!! ## !########"T"###??????? | | ?????????????????#!! ## ]!#??????#####????????? | | ?????????????????######g!!#???????????????????? | | ??????????????????????# !#???????????????????? | | ??????????????????????# gH#???????????????????? | | ??????????????????????# #???????????????????? | | ??????????????????????#gg !??????????????????? | | ??????????????????????#g g ??????????????????? | | ??????????????????????# u ?????????????????? | | ??????????????????????# !????????????????? | | ??????????????????????# !????????????????? | | ??????????????????????# !!##???????????????? | | ??????????????????????# ####????????????????? | | ??????????????????????# #???????????????????? | | ?????????????????????? ???????????????????? | | ?????????????????????? ????????????????????? | | ?????????????????????? ????????????????????? | | ??????????????????????? ????????????????????? | | ??????????????????????????????????????????????? | | ??????????????????????????????????????????????? | +----------------------------------------------------+ Best States ------------- Heat Dissipation 31 Energy Generation 23 Energy Capacity 300 Matter Stores 300 Matter Capacity 350 Sight Range 16 Terrain Scan Range 16 Terrain Scan Density 10 Evasion (%) 55 Item Schematics ----------------- None Robot Schematics ------------------ None Fabricated ------------ Nothing Alien Tech Used ----------------- None Achievements -------------- None Challenges ------------ None Game ------ Seed CloakingKineticBox Manual? 0 Play Time 00:31:55 Cumulative 12.3 hours Start 2022.04.29 @ 21:33:45 End 2022.04.29 @ 22:14:46 Sessions 1 Manual Loads 0 Difficulty Rogue Special Mode None Game No. 15 Rogue 15 Adventurer 0 Explorer 0 Win Type - Total 0 Types 0/0/0/0/0/0/0/0/0 Lore% 10 Gallery% 17 Achievement% 12 Wizard Run 0 Options --------- ASCII 0 Keyboard 0 Movement Mouse Keybinds 0 Fullscreen 1 Font 32/SmallcapsGlow Map View 63x52 Tactical HUD 1 Map Filters NONE Filters NONE Steam 1 RUN: f4fa74e1-44b2-42fc-bbbf-04edc0c8dbdf